fUSD/lending_fUSD_20240424
["ID","MTS","AMOUNT","RATE_DAILY","PERIOD"]
[323409331,1713972666423,-549.78,0.0001178,2]
[323409332,1713972666433,-500.0,0.0001178,2]
[323409333,1713972666444,-500.0,0.0001178,2]
[323409334,1713972666454,-403.08,0.0001178,2]
[323409335,1713972666464,-500.0,0.0001178,2]
[323409336,1713972666474,-500.0,0.0001178,2]
[323409337,1713972666484,-500.0,0.0001178,2]
[323409338,1713972666494,-304.94,0.0001178,2]
[323409339,1713972666504,-489.06885807,0.0001178,2]
[323409340,1713972666515,-500.0,0.0001178,2]
[323409341,1713972666525,-249.26,0.0001178,2]
[323409342,1713972666536,-923.07,0.0001178,2]
[323409343,1713972666546,-500.0,0.0001178,2]
[323409344,1713972666556,-500.0,0.0001178,2]
[323409345,1713972666566,-265.92,0.0001178,2]
[323409346,1713972666577,-500.0,0.0001178,2]
[323409347,1713972666587,-921.33,0.0001178,2]
[323409348,1713972666597,-500.0,0.0001178,2]
[323409349,1713972666607,-500.0,0.0001178,2]
[323409350,1713972666616,-517.06,0.0001178,2]
[323409351,1713972666626,-500.0,0.0001178,2]
[323409352,1713972666636,-837.17,0.0001178,2]
[323409353,1713972666645,-1230.56,0.0001178,2]
[323409354,1713972666655,-500.0,0.0001178,2]
[323409355,1713972666665,-348.32,0.0001178,2]
[323409356,1713972666674,-719.93,0.0001178,2]
[323409357,1713972666684,-500.0,0.0001178,2]
[323409358,1713972666694,-500.0,0.0001178,2]
[323409359,1713972666705,-500.0,0.0001178,2]
[323409360,1713972666718,-500.0,0.0001178,2]
[323409361,1713972666728,-810.29,0.0001178,2]
[323409362,1713972666738,-500.0,0.0001178,2]
[323409363,1713972666749,-310.0,0.0001178,2]
[323409364,1713972666759,-657.61,0.0001178,2]
[323409365,1713972666768,-1000.93,0.0001178,2]
[323409366,1713972666778,-500.0,0.0001178,2]
[323409367,1713972666791,-520.21,0.0001178,2]
[323409368,1713972666800,-2401.63,0.0001178,2]
[323409369,1713972666810,-500.0,0.0001178,2]
[323409370,1713972666820,-500.0,0.0001178,2]
[323409371,1713972666830,-500.0,0.0001178,2]
[323409372,1713972666841,-186.0,0.0001178,2]
[323409373,1713972666851,-500.0,0.0001178,2]
[323409374,1713972666861,-592.75,0.0001178,2]
[323409375,1713972666870,-500.0,0.0001178,2]
[323409376,1713972666881,-512.05,0.0001178,2]
[323409377,1713972666891,-500.0,0.0001178,2]
[323409378,1713972666901,-500.0,0.0001178,2]
[323409379,1713972666911,-500.0,0.0001178,2]
[323409380,1713972666921,-517.59048142,0.0001178,2]
[323409381,1713972666931,-500.0,0.0001178,2]
[323409382,1713972666941,-500.0,0.0001178,2]
[323409383,1713972666952,-538.64,0.0001178,2]
[323409384,1713972666962,-500.0,0.0001178,2]
[323409385,1713972666972,-506.51,0.0001178,2]
[323409386,1713972666981,-500.0,0.0001178,2]
[323409387,1713972666991,-500.0,0.0001178,2]
[323409388,1713972667001,-500.0,0.0001178,2]
[323409389,1713972667010,-473.56,0.0001178,2]
[323409390,1713972667020,-500.0,0.0001178,2]
[323409391,1713972667030,-500.0,0.0001178,2]
[323409392,1713972667041,-500.0,0.0001178,2]
[323409393,1713972667051,-500.0,0.0001178,2]
[323409394,1713972667061,-500.0,0.0001178,2]
[323409395,1713972667072,-690.2,0.0001178,2]
[323409396,1713972667082,-273.33,0.0001178,2]
[323409397,1713972667092,-563.01,0.0001178,2]
[323409398,1713972667102,-500.0,0.0001178,2]
[323409399,1713972667112,-500.0,0.0001178,2]
[323409400,1713972667121,-575.65,0.0001178,2]
[323409401,1713972667131,-500.0,0.0001178,2]
[323409402,1713972667142,-500.0,0.0001178,2]
[323409403,1713972667152,-500.0,0.0001178,2]
[323409404,1713972667161,-735.85,0.0001178,2]
[323409405,1713972667171,-500.0,0.0001178,2]
[323409406,1713972667181,-1263.24,0.0001178,2]
[323409407,1713972667191,-1422.67,0.0001178,2]
[323409408,1713972667201,-500.0,0.0001178,2]
[323409409,1713972667211,-500.0,0.0001178,2]
[323409410,1713972667222,-500.0,0.0001178,2]
[323409411,1713972667232,-500.0,0.0001178,2]
[323409412,1713972667241,-622.25,0.0001178,2]
[323409413,1713972667251,-909.54,0.0001178,2]
[323409414,1713972667261,-500.0,0.0001178,2]
[323409415,1713972667271,-500.0,0.0001178,2]
[323409416,1713972667281,-500.0,0.0001178,2]
[323409417,1713972667294,-697.45,0.0001178,2]
[323409418,1713972667304,-500.0,0.0001178,2]
[323409419,1713972667314,-614.21,0.0001178,2]
[323409420,1713972667324,-500.0,0.0001178,2]
[323409421,1713972667334,-500.0,0.0001178,2]
[323409422,1713972667343,-500.0,0.0001178,2]
[323409423,1713972667354,-500.0,0.0001178,2]
[323409424,1713972667364,-822.89,0.0001178,2]
[323409425,1713972667374,-852.16,0.0001178,2]
[323409426,1713972667384,-821.2,0.0001178,2]
[323409427,1713972667393,-153.2,0.0001178,2]
[323409428,1713972667404,-500.0,0.0001178,2]
[323409429,1713972667414,-500.0,0.0001178,2]
[323409430,1713972667424,-500.0,0.0001178,2]
[323409431,1713972667434,-726.75,0.0001178,2]
[323409432,1713972667444,-1185.74,0.0001178,2]
[323409433,1713972667453,-500.0,0.0001178,2]
[323409434,1713972667464,-550.13,0.0001178,2]
[323409435,1713972667473,-500.0,0.0001178,2]
[323409436,1713972667482,-1898.55,0.0001178,2]
[323409437,1713972667491,-500.0,0.0001178,2]
[323409438,1713972667501,-500.0,0.0001178,2]
[323409439,1713972667510,-500.0,0.0001178,2]
[323409440,1713972667520,-500.0,0.0001178,2]
[323409441,1713972667530,-500.0,0.0001178,2]
[323409442,1713972667540,-504.6982611,0.0001178,2]
[323409443,1713972667550,-500.0,0.0001178,2]
[323409444,1713972667561,-2419.21,0.0001178,2]
[323409445,1713972667571,-414.29,0.0001178,2]
[323409446,1713972667581,-500.0,0.0001178,2]
[323409447,1713972667679,-503.05500807,0.0001178,2]
[323409448,1713972667690,-500.0,0.0001178,2]
[323409449,1713972667700,-500.0,0.0001178,2]
[323409450,1713972667713,-500.0,0.0001178,2]
[323409451,1713972667722,-500.0,0.0001178,2]
[323409452,1713972667732,-500.0,0.0001178,2]
[323409453,1713972667743,-654.28,0.0001178,2]
[323409454,1713972667753,-1067.54,0.0001178,2]
[323409455,1713972667762,-1076.71,0.0001178,2]
[323409456,1713972667772,-3086.19,0.0001178,2]
[323409457,1713972667782,-500.0,0.0001178,2]
[323409458,1713972667793,-500.0,0.0001178,2]
[323409459,1713972667802,-633.26,0.0001178,2]
[323409460,1713972667811,-791.36,0.0001178,2]
[323409461,1713972667821,-696.78,0.0001178,2]
[323409462,1713972667830,-500.0,0.0001178,2]
[323409463,1713972667840,-500.0,0.0001178,2]
[323409464,1713972667851,-784.71,0.0001178,2]
[323409465,1713972667860,-500.0,0.0001178,2]
[323409466,1713972667870,-237.68,0.0001178,2]
[323409467,1713972667880,-500.0,0.0001178,2]
[323409468,1713972667889,-500.0,0.0001178,2]
[323409469,1713972667899,-3249.5,0.0001178,2]
[323409470,1713972667908,-500.0,0.0001178,2]
[323409471,1713972667917,-1125.11,0.0001178,2]
[323409472,1713972667926,-533.27,0.0001178,2]
[323409473,1713972667936,-500.0,0.0001178,2]
[323409474,1713972667945,-1424.26,0.0001178,2]
[323409475,1713972667955,-564.3,0.0001178,2]
[323409476,1713972667965,-500.0,0.0001178,2]
[323409477,1713972667975,-568.9,0.0001178,2]
[323409478,1713972667984,-500.0,0.0001178,2]
[323409479,1713972667994,-500.0,0.0001178,2]
[323409480,1713972668003,-1394.24,0.0001178,2]
[323409481,1713972668013,-500.0,0.0001178,2]
[323409482,1713972668022,-500.0,0.0001178,2]
[323409483,1713972668032,-500.0,0.0001178,2]
[323409484,1713972668043,-500.0,0.0001178,2]
[323409485,1713972668053,-566.48,0.0001178,2]
[323409486,1713972668063,-500.0,0.0001178,2]
[323409487,1713972668072,-218.5,0.0001178,2]
[323409488,1713972668081,-500.0,0.0001178,2]
[323409489,1713972668090,-1372.53,0.0001178,2]
[323409490,1713972668100,-500.0,0.0001178,2]
[323409491,1713972668111,-500.0,0.0001178,2]
[323409492,1713972668121,-500.0,0.0001178,2]
[323409493,1713972668130,-500.0,0.0001178,2]
[323409494,1713972668139,-500.0,0.0001178,2]
[323409495,1713972668149,-500.0,0.0001178,2]
[323409496,1713972668159,-1080.02,0.0001178,2]
[323409497,1713972668168,-500.0,0.0001178,2]
[323409498,1713972668178,-1230.02,0.0001178,2]
[323409499,1713972668188,-1228.13,0.0001178,2]
[323409500,1713972668198,-3443.03,0.0001178,2]
[323409501,1713972668207,-182.56,0.0001178,2]
[323409502,1713972668216,-500.0,0.0001178,2]
[323409503,1713972668226,-500.0,0.0001178,2]
[323409504,1713972668235,-500.0,0.0001178,2]
[323409505,1713972668245,-500.0,0.0001178,2]
[323409506,1713972668254,-1268.11,0.0001178,2]
[323409507,1713972668263,-500.0,0.0001178,2]
[323409508,1713972668273,-500.0,0.0001178,2]
[323409509,1713972668283,-665.52,0.0001178,2]
[323409510,1713972668294,-1096.66,0.0001178,2]
[323409511,1713972668304,-500.0,0.0001178,2]
[323409512,1713972668313,-500.0,0.0001178,2]
[323409513,1713972668323,-500.0,0.0001178,2]
[323409514,1713972668332,-500.0,0.0001178,2]
[323409515,1713972668342,-500.0,0.0001178,2]
[323409516,1713972668351,-624.74,0.0001178,2]
[323409517,1713972668361,-500.0,0.0001178,2]
[323409518,1713972668370,-845.37,0.0001178,2]
[323409519,1713972668380,-2620.88,0.0001178,2]
[323409520,1713972668390,-500.0,0.0001178,2]
[323409521,1713972668399,-772.01,0.0001178,2]
[323409522,1713972668408,-500.0,0.0001178,2]
[323409523,1713972668418,-500.0,0.0001178,2]
[323409524,1713972668427,-500.0,0.0001178,2]
[323409525,1713972668436,-978.64,0.0001178,2]
[323409526,1713972668446,-3073.52,0.0001178,2]
[323409527,1713972668456,-500.0,0.0001178,2]
[323409528,1713972668465,-500.0,0.0001178,2]
[323409529,1713972668475,-500.0,0.0001178,2]
[323409530,1713972668484,-631.6,0.0001178,2]
[323409531,1713972668494,-1159.61,0.0001178,2]
[323409532,1713972668504,-541.36760375,0.0001178,2]
[323409533,1713972668514,-500.0,0.0001178,2]
[323409534,1713972668525,-500.0,0.0001178,2]
[323409535,1713972668535,-861.87,0.0001178,2]
[323409536,1713972668555,-500.0,0.0001178,2]
[323409537,1713972668566,-500.0,0.0001178,2]
[323409538,1713972668576,-500.0,0.0001178,2]
[323409539,1713972668586,-500.0,0.0001178,2]
[323409540,1713972668598,-500.0,0.0001178,2]
[323409541,1713972668607,-2800.84,0.0001178,2]
[323409542,1713972668617,-500.0,0.0001178,2]
[323409543,1713972668627,-500.0,0.0001178,2]
[323409544,1713972668637,-1320.4,0.0001178,2]
[323409545,1713972668646,-500.0,0.0001178,2]
[323409546,1713972668657,-608.76199969,0.0001178,2]
[323409547,1713972668666,-500.0,0.0001178,2]
[323409548,1713972668676,-500.0,0.0001178,2]
[323409549,1713972668686,-710.12,0.0001178,2]
[323409550,1713972668696,-500.0,0.0001178,2]
[323409551,1713972668709,-833.98,0.0001178,2]
[323409552,1713972668719,-1246.57,0.0001178,2]
[323409553,1713972668728,-1307.58,0.0001178,2]
[323409554,1713972668739,-500.0,0.0001178,2]
[323409555,1713972668748,-500.0,0.0001178,2]
[323409556,1713972668758,-500.0,0.0001178,2]
[323409557,1713972668768,-500.0,0.0001178,2]
[323409558,1713972668779,-3170.21,0.0001178,2]
[323409559,1713972668789,-500.0,0.0001178,2]
[323409560,1713972668802,-500.0,0.0001178,2]
[323409561,1713972668811,-563.85,0.0001178,2]
[323409562,1713972668821,-500.0,0.0001178,2]
[323409563,1713972668831,-500.0,0.0001178,2]
[323409564,1713972668840,-500.0,0.0001178,2]
[323409565,1713972668850,-550.23,0.0001178,2]
[323409566,1713972668860,-500.0,0.0001178,2]
[323409567,1713972668869,-500.0,0.0001178,2]
[323409568,1713972668878,-500.0,0.0001178,2]
[323409569,1713972668888,-500.0,0.0001178,2]
[323409570,1713972668897,-845.5,0.0001178,2]
[323409571,1713972668906,-500.0,0.0001178,2]
[323409572,1713972668915,-548.11,0.0001178,2]
[323409573,1713972668925,-1358.18,0.0001178,2]
[323409574,1713972668934,-500.0,0.0001178,2]
[323409575,1713972668943,-500.0,0.0001178,2]
[323409576,1713972668953,-620.64,0.0001178,2]
[323409577,1713972668962,-1248.75,0.0001178,2]
[323409578,1713972668972,-500.0,0.0001178,2]
[323409579,1713972668981,-556.8,0.0001178,2]
[323409580,1713972668990,-500.0,0.0001178,2]
[323409581,1713972668999,-500.0,0.0001178,2]
[323409582,1713972669008,-1085.54,0.0001178,2]
[323409583,1713972669017,-500.0,0.0001178,2]
[323409584,1713972669026,-3695.85,0.0001178,2]
[323409585,1713972669036,-500.0,0.0001178,2]
[323409586,1713972669052,-500.0,0.0001178,2]
[323409587,1713972669062,-4345.73,0.0001178,2]
[323409588,1713972669071,-500.0,0.0001178,2]
[323409589,1713972669080,-500.0,0.0001178,2]
[323409590,1713972669089,-1838.97,0.0001178,2]
[323409591,1713972669099,-500.0,0.0001178,2]
[323409592,1713972669108,-19689.72,0.0001178,2]
[323409593,1713972669118,-931.39,0.0001178,2]
[323409594,1713972669127,-13159.88,0.0001178,2]
[323409595,1713972669137,-934.35,0.0001178,2]
[323409596,1713972669146,-249.00269963,0.0001178,2]
[323409597,1713972669156,-500.0,0.0001178,2]
[323409598,1713972669171,-2828.5,0.0001178,2]
[323409599,1713972669183,-4719.15,0.0001178,2]
[323409600,1713972669192,-2388.43,0.0001178,2]
[323409601,1713972669201,-1617.75,0.0001178,2]
[323409602,1713972669211,-500.0,0.0001178,2]
[323409603,1713972669220,-1854.7,0.0001178,2]
[323409604,1713972669229,-500.0,0.0001178,2]
[323409605,1713972669239,-1115.25,0.0001178,2]
[323409606,1713972669248,-11881.79,0.0001178,2]
[323409607,1713972669257,-500.0,0.0001178,2]
[323409608,1713972669266,-500.0,0.0001178,2]
[323409609,1713972669275,-500.0,0.0001178,2]
[323409610,1713972669284,-2868.9,0.0001178,2]
[323409611,1713972669297,-5730.95,0.0001178,2]
[323409612,1713972669306,-500.0,0.0001178,2]
[323409613,1713972669315,-1256.99,0.0001178,2]
[323409614,1713972669324,-4920.04,0.0001178,2]
[323409615,1713972669334,-500.0,0.0001178,2]
[323409616,1713972669342,-8052.36,0.0001178,2]
[323409617,1713972669352,-555.41,0.0001178,2]
[323409618,1713972669362,-500.0,0.0001178,2]
[323409619,1713972669372,-597.11,0.0001178,2]
[323409620,1713972669381,-723.01,0.0001178,2]
[323409621,1713972669390,-3304.8,0.0001178,2]
[323409622,1713972669399,-1058.73,0.0001178,2]
[323409623,1713972669408,-500.0,0.0001178,2]
[323409624,1713972669418,-500.0,0.0001178,2]
[323409625,1713972669427,-500.0,0.0001178,2]
[323409626,1713972669436,-500.0,0.0001178,2]
[323409627,1713972669445,-790.94,0.0001178,2]
[323409628,1713972669454,-4539.95,0.0001178,2]
[323409629,1713972669464,-500.0,0.0001178,2]
[323409630,1713972669473,-500.0,0.0001178,2]
[323409631,1713972669482,-1301.34,0.0001178,2]
[323409632,1713972669491,-500.0,0.0001178,2]
[323409633,1713972669501,-687.37,0.0001178,2]
[323409634,1713972669510,-500.0,0.0001178,2]
[323409635,1713972669519,-16038.23,0.0001178,2]
[323409636,1713972669528,-855.99,0.0001178,2]
[323409637,1713972669537,-500.0,0.0001178,2]
[323409638,1713972669551,-467.13,0.0001178,2]
[323409639,1713972669560,-629.44,0.0001178,2]
[323409640,1713972669570,-500.0,0.0001178,2]
[323409641,1713972669580,-500.0,0.0001178,2]
[323409642,1713972669590,-3620.06,0.0001178,2]
[323409643,1713972669599,-1866.93,0.0001178,2]
[323409644,1713972669609,-500.0,0.0001178,2]
[323409645,1713972669618,-17065.59,0.0001178,2]
[323409646,1713972669627,-2433.3,0.0001178,2]
[323409647,1713972669637,-851.32,0.0001178,2]
[323409648,1713972669647,-975.71,0.0001178,2]
[323409649,1713972669656,-2542.97,0.0001178,2]
[323409650,1713972669665,-500.0,0.0001178,2]
[323409651,1713972669675,-7110.65,0.0001178,2]
[323409652,1713972669684,-484.29,0.0001178,2]
[323409653,1713972669694,-6033.3,0.0001178,2]
[323409654,1713972669704,-3222.18,0.0001178,2]
[323409655,1713972669716,-2367.96,0.0001178,2]
[323409656,1713972669726,-500.0,0.0001178,2]
[323409657,1713972669735,-2895.44,0.0001178,2]
[323409658,1713972669745,-500.0,0.0001178,2]
[323409659,1713972669754,-500.0,0.0001178,2]
[323409660,1713972669764,-377.79292751,0.0001178,2]
[323409661,1713972669773,-599.74,0.0001178,2]
[323409662,1713972669783,-14734.03,0.0001178,2]
[323409663,1713972669795,-8385.86,0.0001178,2]
[323409664,1713972669804,-500.0,0.0001178,2]
[323409665,1713972669813,-1851.6,0.0001178,2]
[323409666,1713972669823,-4654.63,0.0001178,2]
[323409667,1713972669832,-500.0,0.0001178,2]
[323409668,1713972669842,-2612.87,0.0001178,2]
[323409669,1713972669851,-500.0,0.0001178,2]
[323409670,1713972669861,-1643.7,0.0001178,2]
[323409671,1713972669871,-500.0,0.0001178,2]
[323409672,1713972669880,-1060.62,0.0001178,2]
[323409673,1713972669889,-500.0,0.0001178,2]
[323409674,1713972669898,-2728.08,0.0001178,2]
[323409675,1713972669907,-8695.65,0.0001178,2]
[323409676,1713972669916,-500.0,0.0001178,2]
[323409677,1713972669925,-902.79,0.0001178,2]
[323409678,1713972669935,-1318.18,0.0001178,2]
[323409679,1713972669945,-585.75,0.0001178,2]
[323409680,1713972669954,-12150.74,0.0001178,2]
[323409681,1713972669963,-500.0,0.0001178,2]
[323409682,1713972669973,-3049.85,0.0001178,2]
[323409683,1713972669982,-2672.62,0.0001178,2]
[323409684,1713972669991,-1193.28,0.0001178,2]
[323409685,1713972670002,-6525.87,0.0001178,2]
[323409686,1713972670011,-1664.31,0.0001178,2]
[323409687,1713972670020,-2403.21,0.0001178,2]
[323409688,1713972670029,-500.0,0.0001178,2]
[323409689,1713972670038,-548.73,0.0001178,2]
[323409690,1713972670050,-4989.83,0.0001178,2]
[323409691,1713972670059,-760.02,0.0001178,2]
[323409692,1713972670068,-4065.38,0.0001178,2]
[323409693,1713972670078,-500.0,0.0001178,2]
[323409694,1713972670087,-500.0,0.0001178,2]
[323409695,1713972670098,-1076.29,0.0001178,2]
[323409696,1713972670108,-345.93,0.0001178,2]
[323409697,1713972670117,-3724.0,0.0001178,2]
[323409698,1713972670126,-7492.04,0.0001178,2]
[323409699,1713972670135,-500.0,0.0001178,2]
[323409700,1713972670145,-500.0,0.0001178,2]
[323409701,1713972670155,-4329.81,0.0001178,2]
[323409702,1713972670164,-4778.51,0.0001178,2]
[323409703,1713972670173,-3147.21,0.0001178,2]
[323409704,1713972670182,-534.84,0.0001178,2]
[323409705,1713972670191,-790.71,0.0001178,2]
[323409706,1713972670200,-3653.59,0.0001178,2]
[323409707,1713972670210,-500.0,0.0001178,2]
[323409708,1713972670218,-500.0,0.0001178,2]
[323409709,1713972670228,-12972.63,0.0001178,2]
[323409710,1713972670237,-500.0,0.0001178,2]
[323409711,1713972670247,-5641.48,0.0001178,2]
[323409712,1713972670257,-3078.34,0.0001178,2]
[323409713,1713972670267,-3412.99,0.0001178,2]
[323409714,1713972670276,-500.0,0.0001178,2]
[323409715,1713972670285,-2013.09,0.0001178,2]
[323409716,1713972670297,-521.01,0.0001178,2]
[323409717,1713972670306,-781.56,0.0001178,2]
[323409718,1713972670315,-6234.96,0.0001178,2]
[323409719,1713972670324,-640.29,0.0001178,2]
[323409720,1713972670333,-500.0,0.0001178,2]
[323409721,1713972670342,-1639.01,0.0001178,2]
[323409722,1713972670352,-500.0,0.0001178,2]
[323409723,1713972670361,-1922.4,0.0001178,2]
[323409724,1713972670371,-4353.75,0.0001178,2]
[323409725,1713972670381,-25725.22,0.0001178,2]
[323409726,1713972670390,-7612.26,0.0001178,2]
[323409727,1713972670400,-500.0,0.0001178,2]
[323409728,1713972670411,-1777.69,0.0001178,2]
[323409729,1713972670420,-1989.21,0.0001178,2]
[323409730,1713972670430,-4334.84,0.0001178,2]
[323409731,1713972670439,-3287.13,0.0001178,2]
[323409732,1713972670448,-4313.83,0.0001178,2]
[323409733,1713972670457,-5011.84,0.0001178,2]
[323409734,1713972670467,-500.0,0.0001178,2]
[323409735,1713972670477,-2329.6,0.0001178,2]
[323409736,1713972670486,-509.78897295,0.0001178,2]
[323409737,1713972670495,-500.0,0.0001178,2]
[323409738,1713972670505,-2599.4,0.0001178,2]
[323409739,1713972670514,-500.0,0.0001178,2]
[323409740,1713972670524,-4982.16,0.0001178,2]
[323409741,1713972670534,-9090.79,0.0001178,2]
[323409742,1713972670545,-2277.96,0.0001178,2]
[323409743,1713972670555,-11688.3,0.0001178,2]
[323409744,1713972670565,-500.0,0.0001178,2]
[323409745,1713972670574,-854.69,0.0001178,2]
[323409746,1713972670583,-500.0,0.0001178,2]
[323409747,1713972670592,-500.0,0.0001178,2]
[323409748,1713972670601,-4589.61,0.0001178,2]
[323409749,1713972670611,-1586.02,0.0001178,2]
[323409750,1713972670621,-1692.96,0.0001178,2]
[323409751,1713972670630,-6430.96,0.0001178,2]
[323409752,1713972670639,-1369.43,0.0001178,2]
[323409753,1713972670649,-500.0,0.0001178,2]
[323409754,1713972670659,-6194.34,0.0001178,2]
[323409755,1713972670668,-4369.05,0.0001178,2]
[323409756,1713972670678,-3386.35,0.0001178,2]
[323409757,1713972670688,-500.0,0.0001178,2]
[323409758,1713972670700,-1138.4,0.0001178,2]
[323409759,1713972670712,-2280.22,0.0001178,2]
[323409760,1713972670723,-1653.42,0.0001178,2]
[323409761,1713972670734,-500.0,0.0001178,2]
[323409762,1713972670746,-500.0,0.0001178,2]
[323409763,1713972670756,-8475.7,0.0001178,2]
[323409764,1713972670766,-500.0,0.0001178,2]
[323409765,1713972670776,-500.0,0.0001178,2]
[323409766,1713972670786,-724.74,0.0001178,2]
[323409767,1713972670799,-745.37,0.0001178,2]
[323409768,1713972670809,-500.0,0.0001178,2]
[323409769,1713972670820,-500.0,0.0001178,2]
[323409770,1713972670830,-3940.04,0.0001178,2]
[323409771,1713972670840,-16683.43,0.0001178,2]
[323409772,1713972670851,-1686.48,0.0001178,2]
[323409773,1713972670861,-3355.0,0.0001178,2]
[323409774,1713972670871,-500.0,0.0001178,2]
[323409775,1713972670881,-11869.86,0.0001178,2]
[323409776,1713972670891,-500.0,0.0001178,2]
[323409777,1713972670901,-641.36,0.0001178,2]
[323409778,1713972670911,-11626.0,0.0001178,2]
[323409779,1713972670922,-756.21,0.0001178,2]
[323409780,1713972670931,-151.07182408,0.0001178,2]
[323409781,1713972670941,-3406.58,0.0001178,2]
[323409782,1713972670951,-190.23,0.0001178,2]
[323409783,1713972670962,-500.0,0.0001178,2]
[323409784,1713972670973,-3128.5,0.0001178,2]
[323409785,1713972670983,-500.0,0.0001178,2]
[323409786,1713972670994,-500.0,0.0001178,2]
[323409787,1713972671004,-4233.38,0.0001178,2]
[323409788,1713972671014,-500.0,0.0001178,2]
[323409789,1713972671025,-1049.02,0.0001178,2]
[323409790,1713972671034,-500.0,0.0001178,2]
[323409791,1713972671048,-500.0,0.0001178,2]
[323409792,1713972671058,-500.0,0.0001178,2]
[323409793,1713972671069,-750.0,0.0001178,2]
[323409794,1713972671079,-500.0,0.0001178,2]
[323409795,1713972671089,-500.0,0.0001178,2]
[323409796,1713972671099,-579.65,0.0001178,2]
[323409797,1713972671109,-500.0,0.0001178,2]
[323409798,1713972671119,-6601.66,0.0001178,2]
[323409799,1713972671129,-500.0,0.0001178,2]
[323409800,1713972671139,-500.0,0.0001178,2]
[323409801,1713972671149,-500.0,0.0001178,2]
[323409802,1713972671159,-500.0,0.0001178,2]
[323409803,1713972671169,-2607.02,0.0001178,2]
[323409804,1713972671179,-641.52,0.0001178,2]
[323409805,1713972671188,-500.0,0.0001178,2]
[323409806,1713972671198,-500.0,0.0001178,2]
[323409807,1713972671207,-500.0,0.0001178,2]
[323409808,1713972671216,-5956.68,0.0001178,2]
[323409809,1713972671226,-3595.77,0.0001178,2]
[323409810,1713972671236,-5392.76,0.0001178,2]
[323409811,1713972671245,-500.0,0.0001178,2]
[323409812,1713972671255,-500.0,0.0001178,2]
[323409813,1713972671264,-500.0,0.0001178,2]
[323409814,1713972671274,-530.34,0.0001178,2]
[323409815,1713972671284,-8756.5,0.0001178,2]
[323409816,1713972671295,-740.07839972,0.00011786,2]
[323409817,1713972671304,-740.07839972,0.00011972,2]
[323409818,1713972671315,-871.13222492,0.00012,2]
[323409819,1713972671325,-435.0,0.00012038,2]
[323409820,1713972671335,-638.539,0.00012038,2]
[323409821,1713972671345,-607.0,0.00012038,2]
[323409822,1713972671354,-3110.0,0.00012038,2]
[323409823,1713972671364,-443.0,0.00012038,2]
[323409824,1713972671374,-323.076,0.00012038,2]
[323409825,1713972671385,-459.0,0.00012038,2]
[323409826,1713972671394,-1391.0,0.00012038,2]
[323409827,1713972671404,-2296.0,0.00012038,2]
[323409828,1713972671414,-968.0,0.00012038,2]
[323409829,1713972671424,-5731.0,0.00012038,2]
[323409830,1713972671433,-2706.0,0.00012038,2]